bitfinex/quotes_SOLUSD_20251007
["timestamp","ask_amount","ask_price","bid_price","bid_amount"]
[1759836478279,0.71,230.45,230.4,30.14]
[1759836478480,5.04936402,230.45,230.4,30.14]
[1759836479800,0.71,230.44,230.41,30.12]
[1759836479972,0.71,230.43,230.41,30.12]
[1759836482023,5.05938405,230.45,230.41,30.12]
[1759836482478,0.72,230.44,230.41,30.12]
[1759836482684,4.33938405,230.45,230.41,30.12]
[1759836483198,5.05938405,230.45,230.41,30.12]
[1759836483998,0.72,230.45,230.41,30.12]
[1759836484468,0.72,230.44,230.41,30.12]
[1759836485590,4.33914779,230.46,230.41,30.12]
[1759836487105,5.05914779,230.46,230.41,30.12]
[1759836487610,0.72,230.45,230.41,30.12]
[1759836487805,82.41164188,230.5,230.41,30.12]
[1759836488708,79.7,230.5,230.41,30.12]
[1759836489005,15.18504055,230.49,230.41,30.12]
[1759836489529,10.87647521,230.48,230.41,30.12]
[1759836489993,4.33895951,230.47,230.41,30.12]
[1759836490308,79.7,230.5,230.42,0.69]
[1759836490513,2.71164188,230.54,230.42,0.69]
[1759836490514,10.87647521,230.52,230.42,0.69]
[1759836490813,4.33783021,230.53,230.38,12.83446605]
[1759836490814,2.71164188,230.5,230.38,12.83446605]
[1759836490981,2.71164188,230.5,230.37,11.56647521]
[1759836490982,2.71164188,230.48,230.39,30.1]
[1759836491604,3.43164188,230.49,230.39,30.1]
[1759836491917,0.72,230.49,230.39,30.1]
[1759836492084,4.33895951,230.47,230.39,30.1]
[1759836493524,4.33877125,230.48,230.39,30.1]
[1759836494505,1.97586923,230.47,230.39,30.1]
[1759836494791,11.56672676,230.49,230.39,30.1]
[1759836494792,4.33914779,230.46,230.39,30.1]
[1759836496415,4.3393611,230.45,230.39,30.1]
[1759836497403,1.98135315,230.44,230.39,30.1]
[1759836497610,4.33877125,230.48,230.39,30.1]
[1759836497822,1.98135602,230.47,230.39,30.1]
[1759836497999,1.98135602,230.46,230.39,30.1]
[1759836498201,1.98135602,230.45,230.39,30.1]
[1759836498498,1.98135602,230.44,230.39,30.1]
[1759836498698,4.33874171,230.49,230.4,0.69]
[1759836498919,1.98144588,230.48,230.4,0.69]
[1759836499099,1.98144588,230.47,230.4,0.69]
[1759836499415,1.98144588,230.46,230.39,30.1]
[1759836499605,4.33874171,230.49,230.39,30.1]
[1759836499606,10.87647521,230.48,230.39,30.1]
[1759836499803,1.98142467,230.47,230.39,30.1]
[1759836500005,1.98142467,230.46,230.39,30.1]
[1759836500211,10.87647521,230.48,230.39,30.1]
[1759836500397,1.98122795,230.47,230.39,30.1]
[1759836500704,4.33933608,230.45,230.39,30.1]
[1759836501408,4.33933608,230.45,230.37,13.0602904]
[1759836501624,4.33933608,230.45,230.38,30.08]
[1759836502227,1.98122746,230.44,230.38,30.08]
[1759836502408,4.33933608,230.45,230.36,21.49]
[1759836502609,1.98121301,230.44,230.37,30.08]
[1759836502810,4.33895951,230.47,230.37,30.08]
[1759836503019,1.98121583,230.46,230.37,30.08]
[1759836503315,1.98121583,230.45,230.37,43.39680856]
[1759836503504,1.98121583,230.44,230.37,43.39680856]
[1759836503709,4.33895951,230.47,230.37,43.39680856]
[1759836503898,1.98125418,230.46,230.37,43.39680856]
[1759836504099,1.98125418,230.45,230.37,43.39680856]
[1759836504317,1.98125418,230.44,230.37,43.39680856]
[1759836504534,15.1863583,230.47,230.37,43.39680856]
[1759836504717,1.98119216,230.46,230.37,43.39680856]
[1759836505014,4.33952438,230.44,230.37,43.39680856]
[1759836505215,4.33952438,230.44,230.37,13.31680856]
[1759836505521,4.33952438,230.44,230.38,30.08]
[1759836505918,4.33952438,230.44,230.38,30.77]
[1759836506610,4.33952438,230.44,230.39,30.08]
[1759836507010,15.18701726,230.46,230.39,30.77]
[1759836507203,1.98082648,230.45,230.39,30.77]
[1759836507505,1.98082648,230.44,230.39,30.77]
[1759836507704,15.18701726,230.46,230.39,30.77]
[1759836507906,1.9803971,230.45,230.39,30.77]
[1759836508137,1.9803971,230.44,230.39,30.77]
[1759836508422,15.18701726,230.46,230.39,30.77]
[1759836508610,1.98037196,230.45,230.39,30.77]
[1759836508812,1.98037196,230.44,230.39,30.77]
[1759836509004,15.18701726,230.46,230.39,30.77]
[1759836509225,1.98037289,230.45,230.39,30.77]
[1759836509426,15.18701726,230.46,230.39,30.77]
[1759836509626,4.33952438,230.44,230.39,30.77]
[1759836509925,4.33952438,230.44,230.4,0.69]
[1759836511113,10.87647521,230.47,230.4,0.69]
[1759836511312,1.98039186,230.46,230.4,0.69]
[1759836511531,1.98039186,230.45,230.4,0.69]
[1759836511708,1.98039186,230.44,230.4,0.69]
[1759836511908,10.87647521,230.47,230.4,0.69]
[1759836512205,1.98038321,230.46,230.4,0.69]
[1759836512407,1.98038321,230.45,230.4,0.69]
[1759836512606,1.98038321,230.44,230.4,0.69]
[1759836512821,10.87647521,230.47,230.4,0.69]
[1759836513005,1.98038652,230.46,230.4,0.69]
[1759836513206,4.33952438,230.44,230.4,0.69]
[1759836513518,4.33952438,230.44,230.39,30.08]
[1759836513722,4.33952438,230.44,230.39,30.78]
[1759836514427,21.7241106,230.47,230.39,30.78]
[1759836514428,4.33914779,230.46,230.39,30.78]
[1759836515122,15.18701726,230.46,230.39,30.78]
[1759836515313,1.98016087,230.45,230.39,30.78]
[1759836515514,1.98016087,230.44,230.39,30.78]
[1759836515714,15.88701726,230.46,230.39,30.78]
[1759836515916,1.98014962,230.45,230.39,30.08]
[1759836516245,1.98014962,230.44,230.4,0.7]
[1759836516534,15.88701726,230.46,230.41,0.7]
[1759836516736,1.9801554,230.45,230.42,0.7]
[1759836516943,15.18701726,230.46,230.43,30.08]
[1759836517237,1.98022221,230.45,230.43,30.08]
[1759836517420,5.03914779,230.46,230.43,30.08]
[1759836517617,1.98001367,230.45,230.43,30.08]
[1759836517835,4.33914779,230.46,230.43,30.08]
[1759836518036,1.98012415,230.45,230.43,30.08]
[1759836518207,4.33914779,230.46,230.43,30.08]
[1759836518407,1.98006498,230.45,230.43,30.08]
[1759836518607,4.33914779,230.46,230.43,30.08]
[1759836518835,1.98006594,230.45,230.43,30.08]
[1759836519142,4.33914779,230.46,230.43,30.08]
[1759836519322,1.98006734,230.45,230.43,30.75]
[1759836519546,4.33914779,230.46,230.43,30.75]
[1759836519735,6.31941244,230.45,230.43,30.75]
[1759836519915,4.33935235,230.45,230.43,30.08]
[1759836521240,4.33914779,230.46,230.43,30.08]
[1759836521541,1.97999124,230.45,230.43,30.08]
[1759836521704,4.98914779,230.46,230.43,30.08]
[1759836521905,1.98004754,230.45,230.43,30.08]
[1759836522120,4.98914779,230.46,230.43,30.08]
[1759836522326,1.97994504,230.45,230.43,30.08]
[1759836522533,4.98914779,230.46,230.43,30.08]
[1759836522731,6.31920886,230.45,230.43,30.08]
[1759836522933,4.3393817,230.45,230.43,30.08]
[1759836527543,20.8,230.41,230.31,0.13152649]
[1759836527738,62.45855741,230.44,230.31,0.13152649]
[1759836527739,1.73384735,230.32,230.31,0.13152649]
[1759836528039,6.62497155,230.32,230.31,0.13152649]
[1759836528245,4.36316801,230.32,230.31,0.13152649]
[1759836528534,6.10127824,230.32,230.31,0.13152649]
[1759836529038,9.00559368,230.32,230.31,0.13152649]
[1759836529222,6.10127824,230.32,230.31,0.13152649]
[1759836529427,21.31953879,230.32,230.31,0.13152649]
[1759836529740,24.22385423,230.32,230.31,0.13152649]
[1759836530125,21.31953879,230.32,230.31,0.13152649]
[1759836530342,19.58569144,230.32,230.31,0.13152649]
[1759836530526,21.31953879,230.32,230.31,0.13152649]
[1759836531037,19.58569144,230.32,230.31,0.13152649]
[1759836531241,21.31953879,230.32,230.31,0.13152649]
[1759836531824,19.58569144,230.32,230.31,0.13152649]
[1759836532244,19.58142856,230.32,230.31,0.13152649]
[1759836533122,19.5854649,230.32,230.31,0.13152649]
[1759836533340,21.30478564,230.32,230.31,0.13152649]
[1759836533538,17.6021079,230.32,230.31,0.13152649]
[1759836533934,19.33999159,230.32,230.31,0.13152649]
[1759836534451,17.6021079,230.32,230.31,0.13152649]
[1759836534759,19.33999159,230.32,230.31,0.13152649]
[1759836534946,17.6021079,230.32,230.31,0.13152649]
[1759836537850,19.33999159,230.32,230.31,0.13152649]
[1759836542554,17.60614424,230.32,230.31,0.13152649]
[1759836542754,19.33999159,230.32,230.31,0.13152649]
[1759836544353,17.60614424,230.32,230.31,0.13152649]
[1759836544646,19.33999159,230.32,230.31,0.13152649]
[1759836548236,17.60614424,230.32,230.31,0.13152649]
[1759836548431,19.33999159,230.32,230.31,0.13152649]
[1759836555370,21.22658719,230.32,230.31,0.13152649]
[1759836556968,21.22670784,230.32,230.31,0.13152649]
[1759836561770,47.72670784,230.32,230.31,0.13152649]
[1759836561974,41.00107515,230.32,230.31,0.13152649]
[1759836562178,43.4349225,230.32,230.31,0.13152649]
[1759836562673,47.77670784,230.32,230.31,0.13152649]
[1759836563158,50.66508588,230.32,230.31,0.13152649]
[1759836571067,51.64526801,230.32,230.31,0.13152649]
[1759836573790,49.90738432,230.32,230.31,0.13152649]
[1759836576792,49.20738432,230.32,230.31,0.13152649]
[1759836578068,49.89738432,230.32,230.31,0.13152649]
[1759836584079,47.18335484,230.32,230.31,0.13152649]
[1759836584275,49.89738432,230.32,230.31,0.13152649]
[1759836585399,46.49335484,230.32,230.31,0.13152649]
[1759836585692,22.70738432,230.32,230.31,0.13152649]
[1759836589806,23.38738432,230.32,230.31,0.13152649]
[1759836592599,22.70738432,230.32,230.31,0.13152649]
[1759836595111,23.38738432,230.32,230.31,0.13152649]
[1759836596588,22.70738432,230.32,230.31,0.13152649]
[1759836599309,22.72557131,230.32,230.31,0.13152649]
[1759836600303,18.10663859,230.32,230.31,0.13152649]
[1759836600510,22.72588726,230.32,230.31,0.13152649]
[1759836601013,23.40588726,230.32,230.31,0.13152649]
[1759836603693,23.3838754,230.32,230.26,0.1]
[1759836603904,2.71402948,230.27,230.26,0.1]
[1759836604118,4.61924867,230.27,230.26,0.1]
[1759836604408,4.61924867,230.27,230.23,1e-08]
[1759836604409,34.24515453,230.27,230.23,1e-08]
[1759836604584,23.51402948,230.24,230.23,1e-08]
[1759836604786,32.67645944,230.24,230.23,1e-08]
[1759836605002,33.39645944,230.24,230.23,1e-08]
[1759836607492,44.27293465,230.24,230.23,1e-08]
[1759836609316,70.77293465,230.24,230.23,1e-08]
[1759836612421,70.05293465,230.24,230.23,1e-08]
[1759836613322,70.77293465,230.24,230.23,1e-08]
[1759836615014,70.05293465,230.24,230.23,1e-08]
[1759836615215,43.55293465,230.24,230.23,1e-08]
[1759836615523,44.27293465,230.24,230.23,1e-08]
[1759836617622,20.03890517,230.24,230.23,1e-08]
[1759836617826,17.93379864,230.24,230.23,0.68000001]
[1759836618827,7.0571495,230.25,230.23,0.68000001]
[1759836619326,4.34253951,230.28,230.23,0.68000001]
[1759836619526,2.71402948,230.27,230.23,0.68000001]
[1759836619929,10.87647521,230.29,230.23,0.68000001]
[1759836620519,13.59050469,230.29,230.23,0.68000001]
[1759836620709,10.87647521,230.29,230.23,0.68000001]
[1759836620918,7.0564081,230.29,230.23,0.68000001]
[1759836621232,2.71402948,230.28,230.23,0.68000001]
[1759836621408,4.34237862,230.29,230.23,0.68000001]
[1759836621608,2.71402948,230.27,230.24,30.3]
[1759836621809,2.71402948,230.27,230.25,0.68]
[1759836622114,2.71402948,230.28,230.26,0.68]
[1759836622917,4.3427281,230.27,230.24,30.98]
[1759836623222,7.05675758,230.27,230.24,30.98]
[1759836624012,7.05675758,230.27,230.23,1e-08]
[1759836624013,2.71402948,230.25,230.23,1e-08]
[1759836625010,2.71402948,230.24,230.23,1e-08]
[1759836625318,4.34324547,230.25,230.23,1e-08]
[1759836625523,0.72,230.28,230.23,1e-08]
[1759836625524,13.59050469,230.26,230.23,0.68000001]
[1759836625711,27.85675758,230.27,230.24,0.68]
[1759836626619,7.05675758,230.27,230.23,1e-08]
[1759836626819,7.05655714,230.29,230.25,0.68]
[1759836627024,7.05655714,230.29,230.23,1e-08]
[1759836627333,7.05655714,230.29,230.26,0.68]
[1759836627625,4.34252766,230.29,230.26,0.68]
[1759836627830,2.71402948,230.28,230.24,0.68]
[1759836628026,2.71402948,230.28,230.25,0.68]
[1759836629137,4.3427281,230.27,230.25,0.68]
[1759836629633,4.34251198,230.29,230.23,1e-08]
[1759836629805,4.34207968,230.31,230.25,0.68]
[1759836630127,7.05610916,230.31,230.25,0.68]
[1759836630336,2.71402948,230.3,230.25,0.68]
[1759836630516,2.71402948,230.3,230.26,0.68]
[1759836630830,7.05610916,230.31,230.26,0.68]
[1759836631028,7.05610916,230.31,230.23,1e-08]
[1759836631029,4.34207968,230.31,230.23,1e-08]
[1759836631207,2.71402948,230.31,230.27,0.68]
[1759836631606,3.39402948,230.31,230.27,0.68]
[1759836631824,3.39402948,230.31,230.25,0.72]
[1759836632209,7.73611276,230.31,230.25,0.72]
[1759836632937,4.34176894,230.33,230.25,0.72]
[1759836633228,1.73639539,230.31,230.25,0.72]
[1759836634116,1.73639539,230.32,230.25,0.72]
[1759836634310,1.73639539,230.28,230.23,0.72000001]
[1759836634516,1.73639539,230.29,230.24,31.02]
[1759836634711,1.73639539,230.3,230.25,0.72]
[1759836634923,2.41639539,230.3,230.25,0.72]
[1759836635636,6.75874633,230.29,230.25,0.72]
[1759836635814,6.07874633,230.29,230.25,0.72]
[1759836636015,5.02209004,230.31,230.25,0.72]
[1759836636238,1.73639539,230.3,230.25,0.72]
[1759836636436,0.68,230.3,230.25,0.72]
[1759836636623,2.41639539,230.3,230.25,0.72]
[1759836636827,2.41639539,230.3,230.24,30.3]
[1759836637133,2.41639539,230.3,230.25,0.72]
[1759836637333,0.68,230.3,230.24,30.3]
[1759836637548,0.68,230.3,230.26,0.72]
[1759836637748,12.6128706,230.34,230.27,0.66]
[1759836638051,11.53647521,230.34,230.27,0.66]
[1759836638351,13.2728706,230.34,230.27,0.66]
[1759836638517,11.53647521,230.34,230.27,0.66]
[1759836638713,13.2728706,230.34,230.27,0.66]
[1759836638915,17.61432774,230.34,230.27,0.66]
[1759836639135,1.73639539,230.33,230.27,0.66]
[1759836639728,0.66,230.32,230.25,0.66]
[1759836641617,0.66,230.32,230.25,5.00298362]
[1759836641818,0.66,230.32,230.26,0.66]
[1759836642145,0.66,230.37,230.28,20.8]
[1759836642327,0.66,230.37,230.29,0.66]
[1759836643240,5.00091997,230.37,230.29,0.66]
[1759836644443,0.66,230.41,230.32,20.8]
[1759836644617,0.66,230.41,230.33,30.98]
[1759836645028,0.66,230.41,230.34,0.66]
[1759836647429,6.73660614,230.41,230.33,30.32]
[1759836647633,6.07660614,230.41,230.33,30.32]
[1759836647835,0.66,230.46,230.37,20.8]
[1759836648039,10.84876508,230.52,230.38,0.66]
[1759836648040,0.86,230.48,230.38,0.66]
[1759836648240,0.86,230.48,230.42,20.8]
[1759836650147,0.86,230.48,230.41,0.66]
[1759836650534,5.1987842,230.48,230.41,0.66]
[1759836651753,0.86,230.48,230.41,5.00008517]
[1759836652051,0.86,230.48,230.42,0.66]
[1759836653542,0.86,230.48,230.4,4.34027777]
[1759836653737,0.86,230.48,230.41,0.66]
[1759836654043,0.2,230.48,230.41,0.66]
[1759836654228,0.2,230.48,230.43,20.8]
[1759836654546,0.2,230.48,230.44,0.66]
[1759836654753,0.2,230.48,230.45,30.36]
[1759836654971,0.2,230.48,230.46,0.66]
[1759836655155,0.2,230.48,230.47,0.66]
[1759836656238,0.2,230.48,230.45,30.36]
[1759836656458,0.2,230.48,230.45,31.02]
[1759836656764,0.2,230.48,230.46,0.66]
[1759836656934,0.2,230.48,230.47,0.66]
[1759836658167,0.2,230.48,230.47,25.79895951]
[1759836661639,0.2,230.48,230.47,36.67543472]
[1759836662060,0.2,230.55,230.51,20.8]
[1759836662263,0.2,230.55,230.53,20.8]
[1759836662752,0.2,230.55,230.54,0.72]
[1759836663060,0.2,230.55,230.54,5.05764205]
[1759836664554,0.2,230.55,230.54,15.93411726]
[1759836665167,0.2,230.55,230.54,30.36]
[1759836665345,0.88,230.55,230.53,20.8]
[1759836665547,0.88,230.55,230.54,30.38]
[1759836666142,0.88,230.55,230.53,20.8]
[1759836666473,0.88,230.55,230.5,33.8]
[1759836666474,0.2,230.55,230.54,30.38]
[1759836666956,0.88,230.55,230.54,30.38]
[1759836668346,0.88,230.55,230.5,33.8]
[1759836668664,0.68,230.54,230.51,30.38]
[1759836668850,0.68,230.53,230.51,30.38]
[1759836669045,0.68,230.52,230.51,30.38]
[1759836669561,0.2,230.55,230.51,31.1]
[1759836670066,0.88,230.55,230.51,30.38]
[1759836670566,0.2,230.55,230.51,35.43815107]
[1759836670765,0.2,230.55,230.51,34.71815107]
[1759836670944,0.2,230.55,230.52,0.72]
[1759836671141,0.2,230.55,230.51,34.71815107]
[1759836671359,0.2,230.55,230.51,35.43815107]
[1759836671547,0.88,230.55,230.51,34.71820287]
[1759836671961,0.2,230.55,230.51,34.71820287]
[1759836672185,0.2,230.55,230.51,35.43820287]
[1759836673367,0.2,230.55,230.52,0.72]
[1759836673939,0.2,230.55,230.53,0.72]
[1759836674144,0.2,230.55,230.54,31.1]
[1759836674769,0.2,230.55,230.54,35.43764205]
[1759836675569,0.2,230.55,230.54,25.13764205]
[1759836675754,0.2,230.55,230.54,51.18]
[1759836675951,0.2,230.55,230.54,30.38]
[1759836676156,0.2,230.55,230.52,4.33799907]
[1759836676348,0.2,230.55,230.53,51.18]
[1759836676762,0.2,230.55,230.53,55.51776349]
[1759836677953,0.2,230.55,230.53,56.23776349]
[1759836678665,0.2,230.55,230.54,0.72]
[1759836680169,0.2,230.55,230.54,5.05764205]
[1759836680343,0.2,230.55,230.54,4.33764205]
[1759836680962,0.2,230.55,230.5,35.53539556]
[1759836681164,0.2,230.55,230.54,20.8]
[1759836681364,0.2,230.55,230.5,33.8]
[1759836681553,0.2,230.55,230.51,30.4]
[1759836681751,0.68,230.54,230.5,33.8]
[1759836681968,4.33801839,230.52,230.51,30.42]
[1759836682183,5.01801839,230.52,230.51,30.42]
[1759836682876,6.75441378,230.52,230.51,30.42]
[1759836683050,17.63088899,230.52,230.51,30.42]
[1759836684670,5.01801839,230.52,230.51,30.42]
[1759836686372,6.75441378,230.52,230.51,30.42]
[1759836686955,5.01801839,230.52,230.51,30.42]
[1759836690169,0.2,230.55,230.51,30.42]
[1759836690384,0.68,230.54,230.51,30.42]
[1759836690575,0.68,230.53,230.51,30.42]
[1759836691674,4.53757229,230.55,230.51,30.42]
[1759836691989,0.72,230.54,230.51,30.42]
[1759836692285,4.53757229,230.55,230.51,30.42]
[1759836692475,0.72,230.53,230.51,30.42]
[1759836692684,5.05787885,230.53,230.51,30.42]
[1759836692875,4.33787885,230.53,230.51,30.42]
[1759836693390,0.72,230.52,230.51,30.42]
[1759836695388,5.05801839,230.52,230.51,30.42]
[1759836696666,4.33764205,230.54,230.51,30.42]
[1759836696891,0.72,230.53,230.51,30.42]
[1759836697688,4.33764205,230.54,230.51,30.42]
[1759836697871,0.72,230.54,230.51,30.42]
[1759836699583,5.05769797,230.54,230.51,30.42]
[1759836699789,0.72,230.53,230.51,30.42]
[1759836700284,0.72,230.52,230.51,30.42]
[1759836700680,5.05769797,230.54,230.51,30.42]
[1759836702469,4.33769797,230.54,230.51,30.42]
[1759836702689,0.2,230.55,230.52,0.7]
[1759836703603,4.53746432,230.55,230.48,4.33873396]
[1759836703774,5.25746432,230.55,230.49,31.08]
[1759836704797,0.72,230.54,230.46,42.2149264]
[1759836704983,0.72,230.54,230.46,41.5149264]
[1759836705177,3.42727904,230.53,230.47,30.4]
[1759836705380,0.72,230.52,230.47,30.4]
[1759836705595,0.72,230.51,230.47,30.4]
[1759836705791,0.72,230.5,230.47,30.4]
[1759836706784,5.05842794,230.5,230.47,30.4]
[1759836707292,0.72,230.49,230.47,30.4]
[1759836708003,0.72,230.48,230.46,41.5149264]
[1759836708181,0.72,230.48,230.47,30.4]
[1759836708604,5.05842794,230.5,230.47,30.4]
[1759836708786,5.0587661,230.49,230.47,30.4]
[1759836710806,5.0587661,230.49,230.46,41.5149264]
[1759836710988,5.0587661,230.49,230.47,30.38]
[1759836711401,4.3384096,230.5,230.47,30.38]
[1759836711587,5.0584096,230.5,230.47,30.38]
[1759836712488,5.0584096,230.5,230.46,41.5149264]
[1759836712687,5.0584096,230.5,230.47,30.38]
[1759836715485,4.33820658,230.51,230.48,30.36]
[1759836715681,0.71,230.5,230.48,30.36]
[1759836716198,3.41727904,230.49,230.41,33.8]
[1759836716401,3.41727904,230.48,230.42,30.36]
[1759836716603,0.71,230.47,230.42,30.36]
[1759836717112,0.71,230.47,230.42,31.08]
[1759836718402,4.33914779,230.46,230.42,31.08]
[1759836720124,0.71,230.47,230.42,31.08]
[1759836720306,4.33895951,230.47,230.42,31.08]
[1759836720500,4.33877125,230.48,230.42,30.36]
[1759836720709,14.26268442,230.52,230.43,0.72]
[1759836721316,4.33820658,230.51,230.43,0.72]
[1759836721517,7.73548562,230.51,230.43,0.72]
[1759836722018,5.02820658,230.51,230.43,0.72]
[1759836726223,1.9068414,230.5,230.43,0.72]
[1759836726426,5.02820658,230.51,230.43,0.72]
[1759836727214,5.02820658,230.51,230.43,5.05963414]
[1759836727421,5.02778925,230.54,230.46,20.8]
[1759836727598,5.02778925,230.54,230.47,31.03]
[1759836727599,1.9072319,230.53,230.47,31.03]
[1759836727798,1.9072319,230.52,230.47,31.03]
[1759836728099,5.02778925,230.54,230.47,31.03]
[1759836728301,0.69,230.54,230.47,31.03]
[1759836728720,5.02765312,230.54,230.47,31.03]
[1759836729131,5.02765312,230.54,230.43,0.69]
[1759836729132,3.39727904,230.53,230.43,0.69]
[1759836729435,4.33820658,230.51,230.44,30.34]
[1759836729604,0.69,230.5,230.44,30.34]
[1759836729804,0.69,230.49,230.44,30.34]
[1759836729998,0.69,230.48,230.44,30.34]
[1759836732429,0.69,230.47,230.41,33.8]
[1759836732628,2.70727904,230.43,230.41,33.8]
[1759836732810,2.91092334,230.47,230.42,30.36]
[1759836733013,1.90528762,230.46,230.42,30.36]
[1759836733216,2.70727904,230.46,230.42,30.36]
[1759836733414,3.39727904,230.45,230.42,30.36]
[1759836733626,2.70727904,230.46,230.42,30.36]
[1759836733827,0.69,230.44,230.42,30.36]
[1759836734421,3.39727904,230.43,230.42,30.36]
[1759836735409,3.39727904,230.43,230.41,33.8]
[1759836735614,3.39727904,230.43,230.42,30.36]
[1759836737624,7.04688999,230.44,230.42,30.36]
[1759836737830,3.39727904,230.46,230.42,30.36]
[1759836738033,0.69,230.45,230.42,30.36]
[1759836738529,3.39727904,230.45,230.42,30.36]
[1759836739336,7.73667698,230.45,230.42,30.36]
[1759836739523,0.69,230.44,230.42,30.36]
[1759836740442,3.39727904,230.44,230.42,30.36]
[1759836740812,7.73689865,230.44,230.42,30.36]
[1759836741941,7.04689865,230.44,230.42,30.36]
[1759836742134,0.69,230.43,230.42,30.36]
[1759836742336,3.39727904,230.43,230.42,30.34]
[1759836743445,7.04689865,230.44,230.42,30.34]
[1759836743744,4.33961961,230.44,230.42,30.34]
[1759836744051,5.02961961,230.44,230.42,30.34]
[1759836744347,4.33961961,230.44,230.42,30.34]
[1759836745624,5.02961961,230.44,230.42,30.34]
[1759836745940,7.73689865,230.44,230.42,30.34]
[1759836747227,5.02971271,230.43,230.42,30.34]
[1759836747434,4.33971271,230.43,230.42,30.34]
[1759836748762,2.70727904,230.44,230.42,30.34]
[1759836748932,0.69,230.44,230.42,30.34]
[1759836750226,5.02955819,230.44,230.42,30.34]
[1759836750542,4.33955819,230.44,230.42,30.34]
[1759836751542,5.00955819,230.44,230.42,30.34]
[1759836754053,4.33955819,230.44,230.42,30.34]
[1759836754356,2.70727904,230.45,230.42,30.34]
[1759836754542,7.71660024,230.46,230.42,30.34]
[1759836754734,2.70727904,230.44,230.35,11.51801729]
[1759836754934,3.37727904,230.44,230.37,0.7]
[1759836755143,1.73458947,230.42,230.37,0.7]
[1759836755447,1.73458947,230.42,230.38,0.7]
[1759836756528,6.07439155,230.43,230.39,0.7]
[1759836757452,1.73458947,230.43,230.39,0.7]
[1759836757761,2.42458947,230.45,230.36,34.62103107]
[1759836757949,2.42458947,230.45,230.39,0.67]
[1759836758540,1.73458947,230.44,230.37,0.67]
[1759836758737,1.73458947,230.41,230.35,0.67]
[1759836759049,1.73458947,230.39,230.36,30.28]
[1759836759225,0.69,230.38,230.36,30.28]
[1759836759630,20.8,230.43,230.36,30.28]
[1759836759836,2.42458947,230.4,230.36,30.28]
[1759836760353,1.73458947,230.4,230.36,30.95]
[1759836760858,2.42458947,230.42,230.36,30.28]
[1759836761149,5.0299335,230.42,230.37,0.67]
[1759836761740,0.69,230.41,230.37,0.67]
[1759836762051,0.69,230.41,230.36,30.28]
[1759836762260,2.42458947,230.43,230.37,0.67]
[1759836762430,6.76441681,230.43,230.37,0.67]
[1759836763232,5.02982734,230.43,230.37,0.67]
[1759836765050,0.69,230.47,230.37,5.01073975]
[1759836765258,0.69,230.47,230.38,0.67]
[1759836765442,2.42458947,230.47,230.38,0.67]
[1759836765954,0.69,230.47,230.38,0.67]
[1759836766142,6.76357263,230.47,230.38,0.67]
[1759836766464,1.73458947,230.46,230.38,0.67]
[1759836766632,0.69,230.45,230.38,0.67]
[1759836767759,1.73458947,230.41,230.32,34.47]
[1759836767932,15.18638195,230.47,230.32,34.47]
[1759836767933,1.73458947,230.39,230.33,30.28]
[1759836768134,2.42458947,230.38,230.33,30.28]
[1759836768460,0.69,230.37,230.33,30.28]
[1759836769543,1.73458947,230.38,230.33,30.28]
[1759836769875,0.69,230.37,230.33,30.28]
[1759836770676,1.73458947,230.39,230.34,0.67]
[1759836770842,6.07478048,230.41,230.35,0.67]
[1759836771036,0.69,230.41,230.35,0.67]